bitfinex/quotes_BTCUSD_20241128
["timestamp","ask_amount","ask_price","bid_price","bid_amount"]
[1732777488480,0.104614,95589.0,95583.0,0.00485159]
[1732777488693,0.0008619,95590.0,95583.0,0.00485159]
[1732777488920,0.0008619,95590.0,95589.0,0.104614]
[1732777489372,0.0008619,95590.0,95589.0,0.10646533]
[1732777491594,0.0008619,95590.0,95589.0,0.11146533]
[1732777492247,0.0008619,95590.0,95589.0,0.11446533]
[1732777493344,0.0008619,95590.0,95589.0,0.19156533]
[1732777493802,0.0008619,95590.0,95589.0,0.20402671]
[1732777494444,0.0008619,95590.0,95589.0,0.21914501]
[1732777494653,0.0008619,95590.0,95589.0,0.2048323]
[1732777494866,0.0008619,95590.0,95589.0,0.20668354]
[1732777495330,0.0008619,95590.0,95589.0,0.23968354]
[1732777495572,0.0008619,95590.0,95589.0,0.25028757]
[1732777496447,0.0008619,95590.0,95589.0,0.24528757]
[1732777496675,0.0008619,95590.0,95589.0,0.17018757]
[1732777496967,0.0008619,95590.0,95589.0,0.1670388]
[1732777497175,0.0008619,95590.0,95589.0,0.1700388]
[1732777497384,0.0018619,95590.0,95589.0,0.1790388]
[1732777497613,0.0008619,95590.0,95589.0,0.1670388]
[1732777498054,0.0028619,95590.0,95589.0,0.1830388]
[1732777498273,0.102319,95606.0,95599.0,0.104602]
[1732777498516,0.102319,95606.0,95600.0,0.10645321]
[1732777498748,0.000862,95607.0,95602.0,0.1046]
[1732777499004,0.105457,95607.0,95602.0,0.00185119]
[1732777500397,0.000862,95607.0,95601.0,0.0018512]
[1732777500618,0.000862,95607.0,95602.0,0.002]
[1732777500863,0.105457,95607.0,95603.0,0.00185117]
[1732777501307,0.000862,95607.0,95604.0,0.104597]
[1732777501523,0.000862,95607.0,95605.0,0.00185117]
[1732777501736,0.000862,95607.0,95606.0,0.104595]
[1732777501962,0.000862,95607.0,95606.0,0.10644611]
[1732777504670,0.000862,95607.0,95606.0,0.10944611]
[1732777504907,0.000862,95607.0,95606.0,0.10844611]
[1732777505131,0.000862,95607.0,95606.0,0.11444611]
[1732777505584,0.000862,95607.0,95606.0,0.10844611]
[1732777506222,0.000862,95607.0,95606.0,0.10644611]
[1732777506437,0.000862,95607.0,95606.0,0.11421886]
[1732777506673,0.000862,95607.0,95606.0,0.11921886]
[1732777507173,0.000862,95607.0,95606.0,0.12221886]
[1732777507402,0.000862,95607.0,95606.0,0.11821886]
[1732777508076,0.000862,95607.0,95606.0,0.11421886]
[1732777508309,0.000862,95607.0,95606.0,0.12021886]
[1732777508526,0.000862,95607.0,95606.0,0.11421886]
[1732777508970,0.000862,95607.0,95606.0,0.11444611]
[1732777509642,0.000862,95607.0,95606.0,0.11944611]
[1732777510259,0.000862,95607.0,95606.0,0.11144611]
[1732777510419,0.000862,95607.0,95606.0,0.11744611]
[1732777510900,0.000862,95607.0,95606.0,0.11144611]
[1732777511774,0.000862,95607.0,95606.0,0.11944611]
[1732777513250,0.0436481,95621.0,95617.0,0.104583]
[1732777513423,0.01,95636.0,95618.0,0.00185095]
[1732777513599,0.077,95627.0,95609.0,0.522962]
[1732777513805,0.077,95627.0,95622.0,0.104578]
[1732777514014,0.286146,95627.0,95612.0,0.00185085]
[1732777514226,0.286146,95627.0,95618.0,0.104582]
[1732777514227,0.09926344,95622.0,95618.0,0.104582]
[1732777514431,0.104575,95625.0,95619.0,0.1064319]
[1732777516215,0.0462,95624.0,95619.0,0.1064319]
[1732777516661,0.150776,95624.0,95619.0,0.0018509]
[1732777517081,0.0462,95624.0,95619.0,0.10643189]
[1732777517274,0.0462,95624.0,95620.0,0.00185088]
[1732777519810,0.0462,95624.0,95620.0,0.00285088]
[1732777520009,0.150776,95624.0,95620.0,0.00285088]
[1732777520211,0.150776,95624.0,95620.0,0.001]
[1732777520844,0.104579,95621.0,95620.0,0.001]
[1732777521101,0.104577,95623.0,95620.0,0.001]
[1732777521517,0.0462,95624.0,95620.0,0.001]
[1732777521518,0.104578,95622.0,95620.0,0.001]
[1732777522577,0.0462,95624.0,95620.0,0.001]
[1732777522578,0.185479,95621.0,95620.0,0.001]
[1732777522581,0.185479,95621.0,95592.0,0.18638199]
[1732777522582,0.104595,95606.0,95605.0,0.0152068]
[1732777522794,0.233895,95606.0,95605.0,0.0152068]
[1732777523014,0.10461,95593.0,95592.0,0.0017236]
[1732777523249,0.1293,95605.0,95592.0,0.0017236]
[1732777523250,0.1293,95601.0,95592.0,0.0017236]
[1732777523510,0.1293,95601.0,95593.0,0.00185139]
[1732777523744,0.0809,95607.0,95594.0,0.00185123]
[1732777523953,0.0809,95607.0,95605.0,0.001]
[1732777523954,0.185494,95607.0,95605.0,0.001]
[1732777524192,0.104595,95606.0,95605.0,0.001]
[1732777524405,0.104595,95606.0,95605.0,0.003]
[1732777524622,0.104595,95606.0,95605.0,0.001]
[1732777524832,0.104597,95605.0,95599.0,0.00185122]
[1732777525272,0.104595,95606.0,95599.0,0.00185123]
[1732777525497,0.0809,95607.0,95594.0,0.003]
[1732777525715,0.01,95612.0,95594.0,0.003]
[1732777525716,0.104607,95595.0,95594.0,0.003]
[1732777526197,0.209202,95601.0,95593.0,0.004]
[1732777526427,0.209207,95599.0,95593.0,0.004]
[1732777526668,0.209207,95599.0,95592.0,0.0017236]
[1732777526669,0.1293,95602.0,95592.0,0.0017236]
[1732777526892,0.104607,95596.0,95592.0,0.0017236]
[1732777527131,0.1293,95602.0,95594.0,0.004]
[1732777527349,0.1293,95602.0,95595.0,0.209215]
[1732777527593,0.1293,95602.0,95597.0,0.104605]
[1732777527809,0.1293,95602.0,95598.0,0.00185131]
[1732777528244,0.1233,95602.0,95598.0,0.00185131]
[1732777528456,0.104604,95599.0,95594.0,0.00185131]
[1732777528687,0.104603,95600.0,95595.0,0.004]
[1732777528962,0.1233,95602.0,95595.0,0.004]
[1732777529204,0.1233,95602.0,95596.0,0.00185131]
[1732777529908,0.2279,95602.0,95596.0,0.00185131]
[1732777530342,0.1233,95602.0,95596.0,0.00185131]
[1732777530562,0.1233,95602.0,95596.0,0.00385131]
[1732777530790,0.1233,95602.0,95598.0,0.004]
[1732777530996,0.1233,95602.0,95596.0,0.00385131]
[1732777530997,0.1233,95602.0,95596.0,0.00185131]
[1732777531436,0.1233,95602.0,95596.0,0.00685131]
[1732777531653,0.1233,95602.0,95596.0,0.00385131]
[1732777531870,0.00303401,95601.0,95596.0,0.00385131]
[1732777532341,0.00303401,95601.0,95600.0,0.104602]
[1732777532555,0.0809,95608.0,95603.0,0.104599]
[1732777532787,0.0809,95608.0,95604.0,0.00185118]
[1732777534106,0.0809,95608.0,95602.0,0.104599]
[1732777534320,0.0809,95608.0,95603.0,0.00185118]
[1732777534546,0.0809,95608.0,95604.0,0.001]
[1732777534778,0.0809,95608.0,95605.0,0.104596]
[1732777535254,0.359166,95618.0,95606.0,0.00185119]
[1732777535255,0.0803,95617.0,95606.0,0.00185119]
[1732777535483,0.104585,95616.0,95608.0,0.104593]
[1732777535727,0.0803,95617.0,95609.0,0.00185108]
[1732777535949,0.104586,95615.0,95610.0,0.00185106]
[1732777536177,0.0803,95617.0,95608.0,0.00185109]
[1732777536406,0.104587,95615.0,95608.0,0.00185109]
[1732777536671,0.104587,95615.0,95602.0,0.2119222]
[1732777536672,0.209172,95615.0,95602.0,0.0017232]
[1732777536899,0.104594,95608.0,95603.0,0.00185109]
[1732777537133,0.104591,95610.0,95603.0,0.00185109]
[1732777537382,0.09926344,95612.0,95603.0,0.00185109]
[1732777537632,0.09926344,95612.0,95606.0,0.104595]
[1732777537847,0.291469,95617.0,95607.0,0.00185112]
[1732777538075,0.104587,95614.0,95607.0,0.00185112]
[1732777538290,0.104588,95613.0,95607.0,0.00185112]
[1732777538959,0.104588,95613.0,95608.0,0.00185111]
[1732777539417,0.00307609,95612.0,95608.0,0.00185111]
[1732777539636,0.00307609,95612.0,95608.0,0.00285111]
[1732777540061,0.00307609,95612.0,95608.0,0.00185111]
[1732777540537,0.00307609,95612.0,95608.0,0.00285111]
[1732777540992,0.00307609,95612.0,95608.0,0.00185111]
[1732777541472,0.00307609,95612.0,95608.0,0.004]
[1732777541695,0.00307609,95612.0,95608.0,0.002]
[1732777541943,0.00307609,95612.0,95608.0,0.106592]
[1732777542193,0.00307609,95612.0,95611.0,0.10459]
[1732777542407,0.0803,95617.0,95609.0,0.10644311]
[1732777542632,0.00307691,95612.0,95610.0,0.209183]
[1732777542855,0.0803,95617.0,95611.0,0.10644105]
[1732777543307,0.1952,95619.0,95613.0,0.104588]
[1732777543755,0.1952,95619.0,95613.0,0.10643901]
[1732777543965,0.1952,95619.0,95614.0,0.104586]
[1732777544421,0.1952,95619.0,95613.0,0.00185101]
[1732777545119,0.1962,95619.0,95613.0,0.10643801]
[1732777545546,0.1952,95619.0,95613.0,0.00185101]
[1732777545788,0.300782,95619.0,95613.0,0.00185101]
[1732777546692,0.001,95619.0,95618.0,0.104582]
[1732777546909,0.001,95619.0,95618.0,0.10643287]
[1732777547342,0.334873,95627.0,95618.0,0.00185087]
[1732777547582,0.0803,95627.0,95619.0,0.10643188]
[1732777547802,0.0803,95627.0,95619.0,0.00185088]
[1732777548026,0.0803,95627.0,95622.0,0.104577]
[1732777548286,0.0803,95627.0,95622.0,0.10642785]
[1732777548527,0.104574,95626.0,95622.0,0.00185085]
[1732777548760,0.104574,95626.0,95616.0,0.20917]
[1732777548761,0.0803,95627.0,95620.0,0.00185086]
[1732777548989,0.0803,95627.0,95622.0,0.104578]
[1732777549227,0.0803,95627.0,95620.0,0.00185086]
[1732777549443,0.0803,95627.0,95620.0,0.10642986]
[1732777549652,0.184873,95627.0,95621.0,0.104579]
[1732777549883,0.289446,95627.0,95621.0,0.00185085]
[1732777550098,0.104574,95626.0,95621.0,0.00185085]
[1732777550308,0.289446,95627.0,95621.0,0.00185085]
[1732777550309,0.0803,95627.0,95621.0,0.00185085]
[1732777551472,0.0803,95627.0,95621.0,0.10642885]
[1732777551686,0.0803,95627.0,95622.0,0.104578]
[1732777551902,0.184873,95627.0,95621.0,0.00185085]
[1732777552140,0.104574,95626.0,95621.0,0.00185085]
[1732777552359,0.289446,95627.0,95619.0,0.00185085]
[1732777552803,0.1054366,95625.0,95619.0,0.00185085]
[1732777553020,0.0008616,95625.0,95621.0,0.001]
[1732777553254,0.0008616,95625.0,95621.0,0.105578]
[1732777553480,0.0008616,95625.0,95618.0,0.00185085]
[1732777553702,0.0008616,95625.0,95619.0,0.10743185]
[1732777554141,0.0008616,95625.0,95619.0,0.10643185]
[1732777554359,0.00308074,95623.0,95619.0,0.00185085]
[1732777554605,0.21223574,95623.0,95619.0,0.00185085]
[1732777554839,0.10458,95621.0,95619.0,0.00185085]
[1732777555049,0.10458,95621.0,95616.0,0.01719177]
[1732777555267,0.1283,95623.0,95605.0,0.09335871]
[1732777555560,0.0008616,95625.0,95602.0,0.0017232]
[1732777555561,0.104599,95604.0,95602.0,0.0017232]
[1732777555775,0.0793,95606.0,95602.0,0.0017232]
[1732777555776,0.104599,95603.0,95602.0,0.0017232]
[1732777555990,0.10768649,95603.0,95602.0,0.0017232]
[1732777557740,0.10768649,95603.0,95602.0,0.0027232]
[1732777558250,0.10168649,95603.0,95602.0,0.0027232]
[1732777558706,0.10168649,95603.0,95602.0,0.0047232]
[1732777559774,0.20648261,95603.0,95602.0,0.0047232]
[1732777559975,0.20648261,95603.0,95602.0,0.0037232]
[1732777560632,0.20648261,95603.0,95602.0,0.0017232]
[1732777560907,0.20848261,95603.0,95602.0,0.00127088]
[1732777561330,0.2065317,95603.0,95602.0,0.00127088]
[1732777561543,0.10368649,95603.0,95602.0,0.00127088]
[1732777562208,0.10168649,95603.0,95602.0,0.00127088]
[1732777562515,0.10568649,95603.0,95602.0,0.00127088]
[1732777562904,0.10468649,95603.0,95602.0,0.00127088]
[1732777563254,0.10468649,95603.0,95602.0,0.00227088]
[1732777563844,0.00608749,95603.0,95602.0,0.10687088]
[1732777564059,0.003,95603.0,95602.0,0.10687088]
[1732777564261,0.003,95603.0,95602.0,0.10872205]
[1732777565137,0.0751,95614.0,95602.0,0.00412205]
[1732777565377,0.09926344,95612.0,95605.0,0.104596]
[1732777565533,0.09926344,95612.0,95603.0,0.00185112]
[1732777565534,0.20918,95611.0,95603.0,0.00185112]
[1732777565703,0.00306541,95611.0,95603.0,0.00185116]
[1732777565905,0.104594,95608.0,95603.0,0.00185116]
[1732777566123,0.104594,95608.0,95602.0,0.01427088]
[1732777566386,0.00306541,95607.0,95602.0,0.01027088]
[1732777566556,0.00306541,95607.0,95606.0,0.104595]
[1732777566768,0.0751,95614.0,95606.0,0.104595]
[1732777566971,0.0751,95614.0,95603.0,0.00985124]
[1732777566972,0.104585,95616.0,95610.0,0.104591]
[1732777567171,0.00306541,95613.0,95610.0,0.104591]
[1732777567400,0.104587,95614.0,95608.0,0.104593]
[1732777567635,0.00306851,95612.0,95608.0,0.104593]
[1732777567843,0.104586,95616.0,95607.0,0.104594]
[1732777568012,0.0751,95620.0,95605.0,0.209194]
[1732777568013,0.00306851,95611.0,95609.0,0.104592]
[1732777568225,0.0751,95620.0,95611.0,0.10459]
[1732777568226,0.1508621,95619.0,95611.0,0.10459]
[1732777568434,0.1508621,95619.0,95611.0,0.10644106]
[1732777568435,0.104584,95617.0,95611.0,0.10644106]
[1732777568689,0.104584,95617.0,95611.0,0.10459]
[1732777568911,0.1508621,95619.0,95611.0,0.10459]
[1732777568912,0.104583,95618.0,95611.0,0.104589]
[1732777569112,0.2554441,95619.0,95612.0,0.10644007]
[1732777569335,0.00306851,95618.0,95614.0,0.104586]
[1732777569780,0.00306851,95618.0,95612.0,0.00185107]
[1732777569781,0.002,95617.0,95612.0,0.10644007]
[1732777569991,0.10765151,95618.0,95612.0,0.10644007]
[1732777570206,0.00305751,95616.0,95608.0,0.209187]
[1732777570413,0.104584,95617.0,95609.0,0.00185103]
[1732777570619,0.00307093,95615.0,95609.0,0.00185103]
[1732777570855,0.0018621,95619.0,95611.0,0.10459]
[1732777570856,0.00307093,95614.0,95611.0,0.10459]
[1732777571105,0.104584,95617.0,95611.0,0.10459]
[1732777571353,0.00307093,95616.0,95611.0,0.10459]
[1732777571582,0.00307093,95616.0,95612.0,0.104588]
[1732777571787,0.00307093,95616.0,95612.0,0.10843903]
[1732777572026,0.0008621,95619.0,95612.0,0.10843903]
[1732777572248,0.104583,95618.0,95612.0,0.10643903]
[1732777572474,0.00307093,95617.0,95611.0,0.00185105]
[1732777572683,0.104583,95618.0,95612.0,0.00185103]
[1732777572901,0.00307093,95617.0,95613.0,0.00185105]
[1732777573133,0.209146,95627.0,95613.0,0.00185105]
[1732777573134,0.0751,95630.0,95613.0,0.00185105]
[1732777573353,0.15,95627.0,95613.0,0.00185105]
[1732777573838,0.15,95627.0,95620.0,0.20916]
[1732777574042,0.15,95627.0,95624.0,0.104575]
[1732777574501,0.104572,95628.0,95621.0,0.10642986]
[1732777574713,0.209142,95629.0,95621.0,0.00185086]
[1732777574920,0.104575,95625.0,95618.0,0.104582]
[1732777575129,0.104575,95625.0,95615.0,0.209171]
[1732777575357,0.104573,95627.0,95616.0,0.00185088]
[1732777575567,0.104573,95627.0,95621.0,0.104579]
[1732777576661,0.104573,95627.0,95621.0,0.10642986]
[1732777577373,0.209144,95628.0,95617.0,0.104582]
[1732777577579,0.0454,95629.0,95620.0,0.10458]
[1732777577811,0.0454,95629.0,95620.0,0.10643084]
[1732777578037,0.105573,95627.0,95620.0,0.10643084]
[1732777578260,0.104573,95627.0,95620.0,0.10458]
[1732777579187,0.105573,95627.0,95620.0,0.10458]
[1732777579439,0.104574,95626.0,95620.0,0.10458]
[1732777579659,0.210146,95627.0,95615.0,0.01480676]
[1732777579907,0.210146,95627.0,95616.0,0.00185087]
[1732777579908,0.209148,95626.0,95616.0,0.00185087]
[1732777580169,0.104575,95625.0,95618.0,0.104582]
[1732777580614,0.001,95627.0,95616.0,0.00185087]
[1732777580615,0.104573,95627.0,95616.0,0.00185087]
[1732777580849,0.00364668,95624.0,95620.0,0.10458]
[1732777581078,0.00364668,95623.0,95620.0,0.10643088]
[1732777581332,0.104574,95626.0,95620.0,0.10643088]
[1732777581569,0.00364668,95622.0,95613.0,0.023]
[1732777581803,0.104575,95625.0,95618.0,0.104582]
[1732777582050,0.104575,95625.0,95616.0,0.20917]
[1732777582051,0.104575,95625.0,95619.0,0.104581]
[1732777582268,0.00364668,95624.0,95619.0,0.104581]
[1732777582758,0.00364668,95624.0,95620.0,0.10458]
[1732777582985,0.00364668,95624.0,95620.0,0.00185087]
[1732777583217,0.104573,95627.0,95620.0,0.00185087]
[1732777583447,0.0036467,95623.0,95620.0,0.00185087]
[1732777583676,0.0454,95629.0,95621.0,0.00185085]
[1732777583944,0.1082187,95628.0,95620.0,0.10458]
[1732777584184,0.104573,95627.0,95621.0,0.00185086]
[1732777584423,0.104573,95627.0,95620.0,0.10643087]
[1732777584657,0.00364667,95626.0,95620.0,0.10643087]
[1732777586053,0.00464667,95626.0,95621.0,0.209159]
[1732777586295,0.00464667,95626.0,95623.0,0.104576]
[1732777586559,0.00464667,95626.0,95621.0,0.21100986]
[1732777586804,0.00464667,95626.0,95622.0,0.00185081]
[1732777587037,0.00464667,95626.0,95624.0,0.104575]
[1732777587275,0.00464667,95626.0,95623.0,0.104577]
[1732777587493,0.00364667,95626.0,95623.0,0.104577]
[1732777587730,0.00364667,95626.0,95621.0,0.104579]
[1732777587954,0.00464667,95626.0,95622.0,0.00185083]
[1732777588211,0.00547942,95625.0,95622.0,0.10642883]
[1732777588655,0.04490877,95629.0,95622.0,0.10642883]
[1732777589151,0.001,95626.0,95623.0,0.104576]
[1732777589386,0.001,95626.0,95623.0,0.10642683]
[1732777589605,0.00547941,95625.0,95623.0,0.10642683]
[1732777589842,0.00547941,95625.0,95623.0,0.104576]
[1732777590080,0.00547941,95625.0,95624.0,0.104576]
[1732777590361,0.00547941,95625.0,95624.0,0.10642683]
[1732777590811,0.0806,95637.0,95624.0,0.10642683]
[1732777590812,0.0806,95637.0,95624.0,0.00185083]
[1732777591051,0.0806,95637.0,95631.0,0.104567]
[1732777591279,0.00547937,95636.0,95631.0,0.104567]
[1732777592197,0.00547937,95636.0,95631.0,0.104568]
[1732777593159,0.00547937,95636.0,95630.0,0.209139]
[1732777593383,0.00547937,95636.0,95631.0,0.104568]
[1732777593800,0.00547937,95636.0,95629.0,0.00185071]
[1732777594016,0.00547937,95636.0,95635.0,0.104564]
[1732777594468,0.0008626,95639.0,95635.0,0.104564]
[1732777594691,0.0008626,95639.0,95626.0,0.209146]
[1732777594692,0.0008626,95639.0,95629.0,0.01482083]
[1732777594910,0.00547965,95638.0,95637.0,0.104561]
[1732777598056,0.00634165,95638.0,95637.0,0.104561]
[1732777598276,0.00734165,95638.0,95637.0,0.104561]
[1732777598481,0.00634165,95638.0,95637.0,0.104561]
[1732777598698,0.00634165,95638.0,95637.0,0.113561]
[1732777599658,0.00634165,95638.0,95637.0,0.12229146]
[1732777599876,0.00634165,95638.0,95637.0,0.12929146]
[1732777601018,0.00634165,95638.0,95637.0,0.12629146]
[1732777601247,0.00634165,95638.0,95637.0,0.13029146]
[1732777603185,0.00583846,95638.0,95637.0,0.13029146]
[1732777604508,0.00583846,95638.0,95637.0,0.02573046]
[1732777604714,0.00583846,95638.0,95637.0,0.011]
[1732777605340,0.00583846,95638.0,95637.0,0.115562]
[1732777608699,0.00583846,95638.0,95637.0,0.011]
[1732777609580,0.00583846,95638.0,95637.0,0.115562]
[1732777610476,0.00583846,95638.0,95637.0,0.011]
[1732777611100,0.00583846,95638.0,95637.0,0.115562]
[1732777611506,0.00583846,95638.0,95637.0,0.117286]
[1732777612884,0.00583846,95638.0,95637.0,0.11913657]
[1732777613124,0.00583846,95638.0,95637.0,0.25313121]
[1732777613352,0.00034165,95638.0,95637.0,0.25313121]
[1732777614227,0.00034165,95638.0,95637.0,0.34627627]
[1732777614689,0.00034165,95638.0,95637.0,0.25313121]
[1732777614902,0.00034165,95638.0,95637.0,0.24913121]
[1732777615106,0.00134165,95638.0,95637.0,0.24913121]
[1732777615591,0.00134165,95638.0,95637.0,0.25813121]
[1732777616686,0.00134165,95638.0,95637.0,0.35126975]
[1732777616940,0.00134165,95638.0,95637.0,0.25813121]
[1732777618303,0.00051615,95655.0,95653.0,0.104543]
[1732777618737,0.00495213,95654.0,95653.0,0.104543]
[1732777618973,0.00495213,95654.0,95653.0,0.10639325]
[1732777619397,0.00051615,95655.0,95653.0,0.00185025]
[1732777619640,0.00051615,95655.0,95654.0,0.127543]
[1732777619849,0.00051615,95655.0,95654.0,0.22248551]
[1732777620069,0.00051615,95655.0,95654.0,0.127543]
[1732777620292,0.00051615,95655.0,95654.0,0.22248549]
[1732777620507,0.219026,95682.0,95654.0,0.22248549]
[1732777620508,0.1245,95681.0,95660.0,0.023]
[1732777620728,0.1245,95681.0,95671.0,0.209047]
[1732777620729,0.09925516,95680.0,95671.0,0.209047]
[1732777620945,0.10425195,95680.0,95676.0,0.104518]
[1732777621149,0.00499679,95680.0,95679.0,0.104516]
[1732777621588,0.1245,95681.0,95680.0,0.104515]
[1732777623589,0.1245,95681.0,95668.0,0.209054]
[1732777623827,0.09925516,95680.0,95677.0,0.104517]
[1732777624040,0.1255,95681.0,95675.0,0.10452]
[1732777624253,0.1255,95681.0,95672.0,0.00184984]
[1732777624254,0.1245,95681.0,95677.0,0.104517]
[1732777624476,0.1245,95681.0,95674.0,0.00184983]
[1732777624768,0.1245,95681.0,95669.0,0.023]
[1732777624983,0.09925516,95680.0,95670.0,0.00184983]
[1732777625402,0.09925516,95680.0,95671.0,0.209049]
[1732777625634,0.09925516,95680.0,95674.0,0.104521]
[1732777626286,0.09925516,95680.0,95677.0,0.006]
[1732777626493,0.20377016,95680.0,95674.0,0.10637084]
[1732777626920,0.09925516,95680.0,95674.0,0.10637084]
[1732777627134,0.09925516,95680.0,95674.0,0.10636984]
[1732777627397,0.09925516,95680.0,95677.0,0.003]
[1732777628463,0.1245,95681.0,95677.0,0.003]
[1732777628692,0.1245,95681.0,95677.0,0.104517]
[1732777628909,0.1245,95681.0,95676.0,0.104519]
[1732777629133,0.1245,95681.0,95677.0,0.104517]
[1732777629342,0.1245,95681.0,95675.0,0.20904]
[1732777629553,0.00436039,95680.0,95677.0,0.104517]
[1732777630400,0.00436039,95680.0,95677.0,0.106517]
[1732777630841,0.00436039,95680.0,95677.0,0.104517]
[1732777631377,0.00436039,95680.0,95677.0,0.107517]
[1732777632021,0.00436039,95680.0,95677.0,0.114517]
[1732777632867,0.00436039,95680.0,95677.0,0.01]
[1732777633104,0.00436039,95680.0,95679.0,0.104516]
[1732777633317,0.12286039,95681.0,95680.0,0.104515]
[1732777633988,0.12286039,95681.0,95678.0,0.104516]
[1732777634416,0.12286039,95681.0,95679.0,0.003]
[1732777634925,0.12286039,95681.0,95677.0,0.111518]
[1732777635137,0.12286039,95681.0,95680.0,0.002]
[1732777635337,0.12286039,95681.0,95680.0,0.008]
[1732777635943,0.12372219,95681.0,95680.0,0.008]
[1732777636364,0.12372219,95681.0,95678.0,0.104516]
[1732777636589,0.12372219,95681.0,95675.0,0.20904]
[1732777636590,0.12372219,95681.0,95680.0,0.006]
[1732777637357,0.12372219,95681.0,95680.0,0.008]
[1732777637590,0.22823519,95681.0,95680.0,0.008]
[1732777638024,0.22823519,95681.0,95680.0,0.002]
[1732777638226,0.3410804,95681.0,95680.0,0.002]
[1732777638765,0.4910804,95681.0,95680.0,0.002]
[1732777639499,0.4910804,95681.0,95680.0,0.008]
[1732777639708,0.104531,95665.0,95658.0,0.10638808]
[1732777639943,0.1304,95664.0,95658.0,0.10638808]
[1732777640133,0.1304,95664.0,95658.0,0.104538]
[1732777640328,0.1304,95664.0,95659.0,0.104537]
[1732777640766,0.00481019,95663.0,95659.0,0.104537]
[1732777641233,0.00481019,95663.0,95658.0,0.001]
[1732777641438,0.00481019,95663.0,95655.0,0.00357376]
[1732777641640,0.00481019,95663.0,95659.0,0.001]
[1732777642115,0.00481019,95663.0,95659.0,0.005]
[1732777642320,0.00481019,95663.0,95659.0,0.001]
[1732777642805,0.10934419,95663.0,95659.0,0.001]
[1732777643018,0.10934419,95663.0,95656.0,0.10454]
[1732777643231,0.10934419,95663.0,95659.0,0.004]
[1732777643437,0.00481019,95663.0,95659.0,0.004]
[1732777643867,0.01,95669.0,95659.0,0.004]
[1732777643868,0.0008618,95681.0,95668.0,0.033]
[1732777644104,0.0008618,95681.0,95677.0,0.104517]
[1732777644340,0.00637008,95680.0,95678.0,0.104517]
[1732777644582,0.00637008,95680.0,95674.0,0.023]
[1732777644583,0.00637008,95680.0,95675.0,0.00184975]
[1732777644804,0.0008618,95681.0,95680.0,0.104515]
[1732777645039,0.0008618,95681.0,95680.0,0.10636468]
[1732777646211,0.0008618,95681.0,95680.0,0.11336468]
[1732777647391,0.0008618,95681.0,95680.0,0.11536468]
[1732777648044,0.0065856,95688.0,95684.0,0.10451]
[1732777648268,0.0065856,95688.0,95685.0,0.104509]
[1732777648476,0.00636997,95687.0,95684.0,0.10451]
[1732777648693,0.00636997,95687.0,95682.0,0.209025]
[1732777648903,0.00636997,95687.0,95681.0,0.0018497]
[1732777649134,0.00636997,95687.0,95686.0,0.104508]
[1732777650442,0.00636997,95687.0,95686.0,0.105508]
[1732777651118,0.00636997,95687.0,95686.0,0.1063576]
[1732777651325,0.00636997,95687.0,95686.0,0.10927894]
[1732777651540,0.0069856,95689.0,95688.0,0.104506]
[1732777651751,0.01335595,95689.0,95686.0,0.1093566]
[1732777651955,0.01335595,95689.0,95686.0,0.0048496]
[1732777652215,0.01335595,95689.0,95687.0,0.104507]
[1732777652216,0.0065856,95688.0,95687.0,0.104507]
[1732777652421,0.00637029,95688.0,95687.0,0.104507]
[1732777652668,0.01295589,95688.0,95687.0,0.104507]
[1732777652880,0.01295589,95688.0,95686.0,0.0048496]
[1732777652881,0.01295589,95688.0,95686.0,0.006]
[1732777653267,0.104507,95687.0,95686.0,0.006]
[1732777653465,0.11087722,95687.0,95686.0,0.006]
[1732777654156,0.00637022,95687.0,95680.0,0.01830181]
[1732777654363,0.104509,95686.0,95681.0,0.00184969]
[1732777654577,0.104509,95686.0,95680.0,0.12096609]
[1732777654787,0.00642137,95685.0,95680.0,0.12096609]
[1732777655209,0.00642137,95685.0,95680.0,0.01645209]
[1732777655483,0.0065856,95688.0,95681.0,0.00184968]
[1732777655684,0.0065856,95688.0,95686.0,0.004]
[1732777655893,0.0065856,95687.0,95681.0,0.00184968]
[1732777656105,0.0065856,95687.0,95682.0,0.00184968]
[1732777656929,0.0065856,95687.0,95682.0,0.104512]
[1732777657149,0.0065856,95687.0,95681.0,0.024]
[1732777657150,0.0065856,95687.0,95685.0,0.104509]
[1732777657308,0.0065856,95687.0,95686.0,0.104508]
[1732777657635,0.02743431,95687.0,95684.0,0.10451]
[1732777657831,0.02743431,95687.0,95683.0,0.00184962]
[1732777658051,0.02743431,95687.0,95685.0,0.104509]
[1732777658285,0.02743431,95687.0,95686.0,0.104508]
[1732777658632,0.02743431,95687.0,95682.0,0.00484963]
[1732777658832,0.02743431,95687.0,95685.0,0.104508]
[1732777659359,0.02743431,95687.0,95686.0,0.002]
[1732777659516,0.02717261,95687.0,95686.0,0.002]
[1732777659716,0.02717261,95687.0,95683.0,0.00184961]
[1732777659970,0.02717261,95687.0,95686.0,0.104508]
[1732777660576,0.05717261,95687.0,95686.0,0.104508]
[1732777660780,0.05717261,95687.0,95686.0,0.109508]
[1732777661048,0.05717261,95687.0,95683.0,0.002]
[1732777661221,0.05717261,95687.0,95686.0,0.104508]
[1732777661479,0.05717261,95687.0,95686.0,0.007]
[1732777662128,0.24207961,95687.0,95686.0,0.007]
[1732777662338,0.13757261,95687.0,95686.0,0.007]
[1732777662476,0.1169856,95687.0,95686.0,0.01]
[1732777662679,0.22111407,95687.0,95686.0,0.01]
[1732777662909,0.22111407,95687.0,95686.0,0.007]
[1732777663116,0.21511407,95687.0,95686.0,0.007]
[1732777663290,0.11060707,95687.0,95686.0,0.008]
[1732777663498,0.11060707,95687.0,95686.0,0.112508]
[1732777663703,0.03020707,95687.0,95686.0,0.111508]
[1732777663932,0.03020707,95687.0,95686.0,0.104508]
[1732777664137,0.03020707,95687.0,95686.0,0.109508]
[1732777664900,0.03020707,95687.0,95686.0,0.105508]
[1732777665315,0.03662844,95687.0,95686.0,0.110508]
[1732777665580,0.03662844,95687.0,95686.0,0.104508]
[1732777665745,0.03662844,95687.0,95686.0,0.106508]
[1732777666151,0.03662844,95687.0,95686.0,0.104508]
[1732777666919,0.03662844,95687.0,95686.0,0.111508]
[1732777667146,0.03662844,95687.0,95686.0,0.114508]